[Event "Masters Tournament (MTO)"]
[Site "Biel, Switzerland"]
[Date "2026.07.15"]
[Round "3.6"]
[White "Balabayeva, Xeniya"]
[Black "Alexakis, Dimitris"]
[Result "1/2-1/2"]
[TimeControl "100+30+30sec/move"]
[WhiteTitle "-"]
[BlackTitle "-"]
[WhiteFideId "13719688"]
[BlackFideId "4277023"]
[WhiteElo "2302"]
[BlackElo "2525"]

1. d4 {[%clk 01:40:58]} {[%emt 00:00:01]} Nf6 {[%clk 01:37:28]} {[%emt
00:03:32]} 2. c4 {[%clk 01:41:19]} {[%emt 00:00:09]} e6 {[%clk 01:37:47]}
{[%emt 00:00:12]} 3. Nc3 {[%clk 01:41:42]} {[%emt 00:00:07]} Bb4 {[%clk
01:37:48]} {[%emt 00:00:30]} 4. Nf3 {[%clk 01:42:00]} {[%emt 00:00:12]} Bxc3+
{[%clk 01:24:09]} {[%emt 00:14:08]} 5. bxc3 {[%clk 01:42:22]} {[%emt 00:00:07]}
d6 {[%clk 01:24:29]} {[%emt 00:00:11]} 6. Qc2 {[%clk 01:37:36]} {[%emt
00:05:16]} Qe7 {[%clk 01:21:24]} {[%emt 00:03:35]} 7. e4 {[%clk 01:32:17]}
{[%emt 00:05:49]} e5 {[%clk 01:21:38]} {[%emt 00:00:16]} 8. Bd3 {[%clk
01:32:42]} {[%emt 00:00:05]} Bg4 {[%clk 01:13:53]} {[%emt 00:08:15]} 9. Nd2
{[%clk 01:29:01]} {[%emt 00:04:11]} Nc6 {[%clk 01:10:34]} {[%emt 00:03:49]} 10.
f3 {[%clk 01:18:12]} {[%emt 00:11:19]} Bd7 {[%clk 01:01:39]} {[%emt 00:09:25]}
11. Nb3 {[%clk 01:13:54]} {[%emt 00:04:48]} Nh5 {[%clk 00:49:21]} {[%emt
00:12:48]} 12. O-O {[%clk 01:09:19]} {[%emt 00:05:05]} O-O {[%clk 00:42:53]}
{[%emt 00:06:58]} 13. f4 {[%clk 01:01:32]} {[%emt 00:08:17]} exf4 {[%clk
00:36:43]} {[%emt 00:06:41]} 14. Bxf4 {[%clk 01:01:39]} {[%emt 00:00:22]} Nxf4
{[%clk 00:33:46]} {[%emt 00:03:27]} 15. Rxf4 {[%clk 01:02:02]} {[%emt
00:00:06]} b6 {[%clk 00:32:59]} {[%emt 00:01:18]} 16. Raf1 {[%clk 00:54:28]}
{[%emt 00:08:04]} Rae8 {[%clk 00:32:24]} {[%emt 00:01:05]} 17. Nc1 {[%clk
00:48:35]} {[%emt 00:06:23]} Nd8 {[%clk 00:31:00]} {[%emt 00:01:54]} 18. Ne2
{[%clk 00:43:08]} {[%emt 00:05:57]} Ne6 {[%clk 00:22:35]} {[%emt 00:08:54]} 19.
R4f2 {[%clk 00:41:44]} {[%emt 00:01:53]} c5 {[%clk 00:17:04]} {[%emt 00:06:02]}
20. Nf4 {[%clk 00:36:41]} {[%emt 00:05:33]} cxd4 {[%clk 00:15:01]} {[%emt
00:02:32]} 21. Nxe6 {[%clk 00:35:37]} {[%emt 00:01:35]} fxe6 {[%clk 00:07:08]}
{[%emt 00:08:24]} 22. e5 {[%clk 00:33:03]} {[%emt 00:03:04]} h6 {[%clk
00:01:18]} {[%emt 00:06:20]} 23. Bh7+ {[%clk 00:22:35]} {[%emt 00:10:57]} Kh8
{[%clk 00:01:46]} {[%emt 00:00:02]} 24. Bg6 {[%clk 00:22:57]} {[%emt 00:00:08]}
Rd8 {[%clk 00:00:41]} {[%emt 00:01:35]} 25. exd6 {[%clk 00:18:00]} {[%emt
00:05:27]} Qxd6 {[%clk 00:01:06]} {[%emt 00:00:05]} 26. Rxf8+ {[%clk 00:18:13]}
Rxf8 {[%clk 00:01:34]} {[%emt 00:00:19]} 27. Rxf8+ {[%clk 00:18:33]} {[%emt
00:00:10]} Qxf8 {[%clk 00:02:01]} {[%emt 00:00:03]} 28. cxd4 {[%clk 00:18:56]}
{[%emt 00:00:07]} e5 {[%clk 00:00:35]} {[%emt 00:01:57]} 29. d5 {[%clk
00:13:57]} {[%emt 00:05:29]} Qd6 {[%clk 00:00:32]} {[%emt 00:00:32]} 30. h4
{[%clk 00:08:58]} {[%emt 00:05:29]} Kg8 {[%clk 00:00:45]} {[%emt 00:00:18]} 31.
h5 {[%clk 00:08:22]} {[%emt 00:01:06]} Kf8 {[%clk 00:00:49]} {[%emt 00:00:26]}
32. Qf2+ {[%clk 00:08:42]} {[%emt 00:00:09]} Qf6 {[%clk 00:01:17]} {[%emt
00:00:03]} 33. Qe3 {[%clk 00:08:37]} {[%emt 00:00:36]} Ke7 {[%clk 00:00:37]}
{[%emt 00:01:10]} 34. c5 {[%clk 00:08:10]} {[%emt 00:00:57]} bxc5 {[%clk
00:00:37]} {[%emt 00:00:30]} 35. Qxc5+ {[%clk 00:08:33]} {[%emt 00:00:06]} Qd6
{[%clk 00:00:46]} {[%emt 00:00:21]} 36. Qxa7 {[%clk 00:08:39]} {[%emt
00:00:25]} Qxd5 {[%clk 00:00:38]} {[%emt 00:00:37]} 37. Bf5 {[%clk 00:04:05]}
{[%emt 00:05:03]} Qd1+ {[%clk 00:01:04]} {[%emt 00:00:04]} 38. Kh2 {[%clk
00:04:27]} {[%emt 00:00:07]} Qxh5+ {[%clk 00:01:27]} {[%emt 00:00:08]} 39. Bh3
{[%clk 00:04:55]} {[%emt 00:00:02]} Qd1 {[%clk 00:01:47]} {[%emt 00:00:10]} 40.
a4 {[%clk 00:02:53]} {[%emt 00:02:33]} Qd4 {[%clk 00:00:35]} {[%emt 00:01:41]}
41. Qc7 {[%clk 00:16:46]} {[%emt 00:16:37]} Qd6 {[%clk 00:26:22]} {[%emt
00:04:43]} 42. Qxd7+ {[%clk 00:12:54]} {[%emt 00:04:21]} Qxd7 {[%clk 00:26:36]}
{[%emt 00:00:17]} 43. Bxd7 {[%clk 00:13:21]} Kxd7 {[%clk 00:26:59]} {[%emt
00:00:10]} 44. Kg3 {[%clk 00:13:48]} {[%emt 00:00:03]} h5 {[%clk 00:14:10]}
{[%emt 00:13:19]} 45. Kf3 {[%clk 00:12:58]} {[%emt 00:01:19]} g5 {[%clk
00:14:31]} {[%emt 00:00:10]} 46. Ke4 {[%clk 00:13:02]} {[%emt 00:00:26]} g4
{[%clk 00:10:19]} {[%emt 00:04:42]} 47. Kxe5 {[%clk 00:13:11]} {[%emt
00:00:22]} h4 {[%clk 00:10:44]} {[%emt 00:00:05]} 48. Kf4 {[%clk 00:13:37]}
{[%emt 00:00:04]} h3 {[%clk 00:11:10]} {[%emt 00:00:04]} 49. gxh3 {[%clk
00:14:04]} {[%emt 00:00:03]} gxh3 {[%clk 00:11:35]} {[%emt 00:00:05]} 1/2-1/2

[Event "Masters Tournament (MTO)"]
[Site "Biel, Switzerland"]
[Date "2026.07.15"]
[Round "3.7"]
[White "Pleschke, Julius Jonas"]
[Black "Shukhman, Anna"]
[Result "1/2-1/2"]
[TimeControl "100+30+30sec/move"]
[WhiteTitle "-"]
[BlackTitle "-"]
[WhiteFideId "54734258"]
[BlackFideId "54180058"]
[WhiteElo "2280"]
[BlackElo "2443"]

1. d4 {[%clk 01:40:49]} {[%emt 00:00:10]} d5 {[%clk 01:40:56]} {[%emt
00:00:05]} 2. c4 {[%clk 01:41:13]} {[%emt 00:00:06]} e6 {[%clk 01:41:23]}
{[%emt 00:00:02]} 3. Nf3 {[%clk 01:40:35]} {[%emt 00:01:07]} Nf6 {[%clk
01:41:51]} {[%emt 00:00:03]} 4. Nc3 {[%clk 01:39:19]} {[%emt 00:01:45]} Nbd7
{[%clk 01:42:17]} {[%emt 00:00:05]} 5. Bg5 {[%clk 01:38:17]} {[%emt 00:01:31]}
Bb4 {[%clk 01:42:31]} {[%emt 00:00:17]} 6. cxd5 {[%clk 01:33:49]} {[%emt
00:04:59]} exd5 {[%clk 01:42:57]} {[%emt 00:00:04]} 7. Qc2 {[%clk 01:32:46]}
{[%emt 00:01:32]} c6 {[%clk 01:39:33]} {[%emt 00:03:55]} 8. e3 {[%clk
01:33:01]} {[%emt 00:00:15]} O-O {[%clk 01:34:40]} {[%emt 00:05:23]} 9. Bd3
{[%clk 01:33:18]} {[%emt 00:00:12]} h6 {[%clk 01:35:06]} {[%emt 00:00:04]} 10.
Bh4 {[%clk 01:33:13]} {[%emt 00:00:34]} Re8 {[%clk 01:31:44]} {[%emt 00:03:54]}
11. O-O {[%clk 01:33:29]} {[%emt 00:00:13]} Nf8 {[%clk 01:27:25]} {[%emt
00:04:49]} 12. Ne5 {[%clk 01:28:42]} {[%emt 00:05:16]} Qd6 {[%clk 01:24:51]}
{[%emt 00:03:04]} 13. a3 {[%clk 01:15:11]} {[%emt 00:14:02]} Bxc3 {[%clk
01:10:19]} {[%emt 00:15:02]} 14. Qxc3 {[%clk 01:13:58]} {[%emt 00:01:42]} Ne4
{[%clk 01:08:45]} {[%emt 00:02:05]} 15. Qc2 {[%clk 01:13:37]} {[%emt 00:00:50]}
f6 {[%clk 00:58:46]} {[%emt 00:10:31]} 16. Nc4 {[%clk 01:07:21]} {[%emt
00:06:46]} Qe7 {[%clk 00:57:32]} {[%emt 00:01:43]} 17. Nd2 {[%clk 01:06:50]}
{[%emt 00:01:01]} Bf5 {[%clk 00:57:45]} {[%emt 00:00:17]} 18. Rfe1 {[%clk
01:04:58]} {[%emt 00:02:22]} Bh7 {[%clk 00:49:35]} {[%emt 00:08:41]} 19. Rad1
{[%clk 01:00:19]} {[%emt 00:05:08]} Nxd2 {[%clk 00:42:55]} {[%emt 00:07:10]} 20.
Bxh7+ {[%clk 00:59:54]} {[%emt 00:00:54]} Nxh7 {[%clk 00:43:22]} {[%emt
00:00:04]} 21. Qxd2 {[%clk 00:59:53]} {[%emt 00:00:32]} Qe4 {[%clk 00:40:58]}
{[%emt 00:02:53]} 22. Bg3 {[%clk 00:59:44]} {[%emt 00:00:38]} Ng5 {[%clk
00:41:21]} {[%emt 00:00:09]} 23. f3 {[%clk 00:58:16]} {[%emt 00:01:57]} Qg6
{[%clk 00:41:28]} {[%emt 00:00:23]} 24. Qd3 {[%clk 00:56:04]} {[%emt 00:02:42]}
f5 {[%clk 00:41:15]} {[%emt 00:00:44]} 25. Kh1 {[%clk 00:54:36]} {[%emt
00:01:56]} Nf7 {[%clk 00:41:27]} {[%emt 00:00:18]} 26. b4 {[%clk 00:52:28]}
{[%emt 00:02:39]} a6 {[%clk 00:29:09]} {[%emt 00:12:48]} 27. a4 {[%clk
00:51:45]} {[%emt 00:01:14]} Re6 {[%clk 00:29:02]} {[%emt 00:00:36]} 28. Rc1
{[%clk 00:48:39]} {[%emt 00:03:36]} Rae8 {[%clk 00:28:37]} {[%emt 00:00:54]} 29.
b5 {[%clk 00:47:36]} {[%emt 00:01:34]} axb5 {[%clk 00:27:01]} {[%emt 00:02:06]}
30. axb5 {[%clk 00:47:56]} {[%emt 00:00:10]} Qg5 {[%clk 00:27:08]} {[%emt
00:00:23]} 31. Bf2 {[%clk 00:45:06]} {[%emt 00:03:19]} Rg6 {[%clk 00:22:44]}
{[%emt 00:04:54]} 32. Qf1 {[%clk 00:39:50]} {[%emt 00:05:46]} Qd8 {[%clk
00:09:13]} {[%emt 00:14:02]} 33. Qd3 {[%clk 00:39:35]} {[%emt 00:00:44]} Qd7
{[%clk 00:09:40]} {[%emt 00:00:04]} 34. Bg3 {[%clk 00:38:45]} {[%emt 00:01:20]}
Rf6 {[%clk 00:08:53]} {[%emt 00:01:17]} 35. bxc6 {[%clk 00:36:09]} {[%emt
00:03:06]} bxc6 {[%clk 00:09:12]} {[%emt 00:00:12]} 36. Ra1 {[%clk 00:35:04]}
{[%emt 00:01:34]} g6 {[%clk 00:08:25]} {[%emt 00:01:17]} 37. e4 {[%clk
00:25:15]} {[%emt 00:10:20]} dxe4 {[%clk 00:04:05]} {[%emt 00:04:50]} 38. fxe4
{[%clk 00:25:39]} {[%emt 00:00:05]} Rfe6 {[%clk 00:00:48]} {[%emt 00:03:48]} 39.
exf5 {[%clk 00:22:16]} {[%emt 00:03:52]} Rxe1+ {[%clk 00:01:16]} {[%emt
00:00:03]} 40. Bxe1 {[%clk 00:20:51]} {[%emt 00:01:54]} gxf5 {[%clk 00:01:38]}
{[%emt 00:00:08]} 41. Bf2 {[%clk 00:19:22]} {[%emt 00:01:58]} Qd5 {[%clk
00:01:05]} {[%emt 00:01:04]} 42. Rc1 {[%clk 00:17:32]} {[%emt 00:02:20]} Ng5
{[%clk 00:23:08]} {[%emt 00:08:28]} 43. Qc4 {[%clk 00:44:10]} {[%emt 00:03:51]}
Re6 {[%clk 00:19:58]} {[%emt 00:03:40]} 44. Kg1 {[%clk 00:42:38]} {[%emt
00:02:01]} Kf7 {[%clk 00:19:21]} {[%emt 00:01:09]} 45. Qxd5 {[%clk 00:38:14]}
{[%emt 00:04:52]} cxd5 {[%clk 00:19:08]} {[%emt 00:00:43]} 46. Bg3 {[%clk
00:38:27]} {[%emt 00:00:16]} Re4 {[%clk 00:15:30]} {[%emt 00:04:10]} 47. Rc7+
{[%clk 00:37:41]} {[%emt 00:01:16]} Kg6 {[%clk 00:15:01]} {[%emt 00:00:59]} 48.
Be5 {[%clk 00:37:19]} {[%emt 00:00:52]} Ne6 {[%clk 00:15:01]} {[%emt 00:00:30]}
49. Rd7 {[%clk 00:37:10]} {[%emt 00:00:38]} Nxd4 {[%clk 00:14:45]} {[%emt
00:00:48]} 50. Rxd5 {[%clk 00:37:16]} {[%emt 00:00:23]} Ne6 {[%clk 00:15:10]}
{[%emt 00:00:05]} 51. Bd6 {[%clk 00:36:42]} {[%emt 00:01:02]} Ng5 {[%clk
00:15:13]} {[%emt 00:00:29]} 52. Rd1 {[%clk 00:36:24]} {[%emt 00:00:47]} Re2
{[%clk 00:15:19]} {[%emt 00:00:25]} 53. Bf4 {[%clk 00:35:50]} {[%emt 00:01:03]}
Ne4 {[%clk 00:15:38]} {[%emt 00:00:12]} 54. Ra1 {[%clk 00:36:10]} {[%emt
00:00:09]} h5 {[%clk 00:15:59]} {[%emt 00:00:10]} 55. h3 {[%clk 00:35:44]}
{[%emt 00:00:53]} Nc5 {[%emt 00:04:57]} 56. Ra5 {[%clk 00:35:08]} Nd3 {[%clk
00:12:38]} {[%emt 00:00:32]} 57. Ra6+ {[%clk 00:35:15]} {[%emt 00:00:22]} Kf7
{[%clk 00:11:48]} {[%emt 00:01:21]} 58. Bg5 {[%clk 00:33:53]} {[%emt 00:01:47]}
Re6 {[%clk 00:11:57]} {[%emt 00:00:26]} 1/2-1/2

[Event "Masters Tournament (MTO)"]
[Site "Biel, Switzerland"]
[Date "2026.07.15"]
[Round "3.8"]
[White "Baenziger, Fabian"]
[Black "Georgescu, Lena"]
[Result "1/2-1/2"]
[TimeControl "100+30+30sec/move"]
[WhiteTitle "-"]
[BlackTitle "-"]
[WhiteFideId "1330110"]
[BlackFideId "1331973"]
[WhiteElo "2435"]
[BlackElo "2253"]

1. e4 {[%clk 01:40:55]} {[%emt 00:00:06]} e5 {[%clk 01:40:34]} {[%emt
00:00:24]} 2. Nf3 {[%clk 01:41:06]} {[%emt 00:00:19]} Nc6 {[%clk 01:41:00]}
{[%emt 00:00:05]} 3. Bc4 {[%clk 01:40:55]} {[%emt 00:00:41]} Nf6 {[%clk
01:39:14]} {[%emt 00:02:15]} 4. d3 {[%clk 01:41:18]} {[%emt 00:00:09]} Bc5
{[%clk 01:39:37]} {[%emt 00:00:07]} 5. Nc3 {[%clk 01:41:00]} {[%emt 00:00:48]}
h6 {[%clk 01:38:31]} {[%emt 00:01:35]} 6. h3 {[%clk 01:40:36]} {[%emt
00:00:54]} a6 {[%clk 01:37:59]} {[%emt 00:01:02]} 7. Be3 {[%clk 01:40:36]}
{[%emt 00:00:30]} d6 {[%clk 01:37:10]} {[%emt 00:01:19]} 8. a4 {[%clk
01:40:09]} {[%emt 00:00:58]} Bxe3 {[%clk 01:34:21]} {[%emt 00:03:19]} 9. fxe3
{[%clk 01:40:12]} {[%emt 00:00:26]} Be6 {[%clk 01:34:40]} {[%emt 00:00:11]} 10.
Nd2 {[%clk 01:40:37]} {[%emt 00:00:05]} Bxc4 {[%clk 01:22:25]} {[%emt
00:12:45]} 11. Nxc4 {[%clk 01:40:32]} {[%emt 00:00:35]} d5 {[%clk 01:21:45]}
{[%emt 00:01:10]} 12. exd5 {[%clk 01:40:12]} {[%emt 00:00:50]} Nxd5 {[%clk
01:22:10]} {[%emt 00:00:05]} 13. O-O {[%emt 00:05:00]} O-O {[%clk 01:20:18]}
{[%emt 00:00:01]} 14. e4 {[%clk 01:38:27]} {[%emt 00:00:06]} Nxc3 {[%clk
01:15:56]} {[%emt 00:04:53]} 15. bxc3 {[%clk 01:38:08]} {[%emt 00:00:49]} b5
{[%clk 01:15:48]} {[%emt 00:00:37]} 16. Ne3 {[%clk 01:37:30]} {[%emt 00:01:08]}
Ne7 {[%clk 01:07:24]} {[%emt 00:08:54]} 17. Qh5 {[%clk 01:30:34]} {[%emt
00:07:26]} Ng6 {[%clk 01:03:34]} {[%emt 00:04:19]} 18. axb5 {[%clk 01:12:24]}
{[%emt 00:18:41]} axb5 {[%clk 01:03:47]} {[%emt 00:00:16]} 19. Rxa8 {[%clk
01:12:50]} {[%emt 00:00:05]} Qxa8 {[%emt 00:00:07]} 20. Nf5 {[%clk 01:13:16]}
Qd8 {[%clk 00:40:20]} {[%emt 00:24:24]} 21. Qg4 {[%clk 01:06:53]} {[%emt
00:06:53]} Qg5 {[%clk 00:39:59]} {[%emt 00:00:51]} 22. Qxg5 {[%clk 01:06:09]}
{[%emt 00:01:15]} hxg5 {[%clk 00:40:23]} {[%emt 00:00:05]} 23. Ra1 {[%clk
01:06:30]} {[%emt 00:00:08]} Nf4 {[%clk 00:35:27]} {[%emt 00:05:26]} 24. Kf2
{[%clk 01:00:59]} {[%emt 00:06:01]} g6 {[%clk 00:32:49]} {[%emt 00:03:10]} 25.
Ne7+ {[%clk 00:58:12]} {[%emt 00:03:16]} Kg7 {[%clk 00:33:13]} {[%emt
00:00:06]} 26. Ra7 {[%clk 00:51:46]} {[%emt 00:06:56]} c5 {[%clk 00:31:12]}
{[%emt 00:02:31]} 27. Nc6 {[%clk 00:49:53]} {[%emt 00:02:24]} Kf6 {[%clk
00:28:31]} {[%emt 00:03:09]} 28. Kf3 {[%clk 00:47:13]} {[%emt 00:03:10]} Rc8
{[%clk 00:25:56]} {[%emt 00:03:06]} 29. Ra6 {[%clk 00:39:27]} {[%emt 00:08:16]}
Ne6 {[%clk 00:25:49]} {[%emt 00:00:36]} 30. g3 {[%clk 00:39:15]} {[%emt
00:00:43]} b4 {[%clk 00:18:44]} {[%emt 00:07:35]} 31. cxb4 {[%clk 00:37:48]}
{[%emt 00:01:58]} cxb4 {[%clk 00:19:01]} {[%emt 00:00:12]} 32. Nxb4 {[%clk
00:36:01]} {[%emt 00:02:17]} Kg7 {[%clk 00:18:36]} {[%emt 00:00:55]} 33. Ra2
{[%clk 00:31:52]} {[%emt 00:04:38]} Nd4+ {[%clk 00:16:59]} {[%emt 00:02:07]} 34.
Kg2 {[%clk 00:31:55]} {[%emt 00:00:27]} Rc3 {[%clk 00:16:15]} {[%emt 00:01:16]}
35. Kf2 {[%clk 00:31:54]} {[%emt 00:00:30]} Rc8 {[%clk 00:15:04]} {[%emt
00:01:42]} 36. Rb2 {[%clk 00:31:22]} {[%emt 00:01:01]} Rc7 {[%clk 00:11:49]}
{[%emt 00:03:45]} 37. Ke3 {[%clk 00:29:53]} {[%emt 00:01:58]} Rc8 {[%clk
00:12:13]} {[%emt 00:00:06]} 38. Kf2 {[%clk 00:28:55]} {[%emt 00:01:28]} Rc7
{[%clk 00:11:33]} {[%emt 00:01:10]} 39. Ra2 {[%clk 00:27:00]} {[%emt 00:02:26]}
Rc8 {[%clk 00:10:16]} {[%emt 00:01:48]} 40. Rb2 {[%clk 00:15:34]} {[%emt
00:10:56]} 1/2-1/2

[Event "Masters Tournament (MTO)"]
[Site "Biel, Switzerland"]
[Date "2026.07.15"]
[Round "3.9"]
[White "Gopal, G.N."]
[Black "Schnell, Simon"]
[Result "1-0"]
[TimeControl "100+30+30sec/move"]
[WhiteTitle "-"]
[BlackTitle "-"]
[WhiteFideId "5015693"]
[BlackFideId "1345311"]
[WhiteElo "2529"]
[BlackElo "2211"]

1. e4 {[%clk 01:40:56]} {[%emt 00:00:03]} c6 {[%clk 01:40:53]} {[%emt
00:00:07]} 2. d4 {[%clk 01:41:22]} {[%emt 00:00:05]} d5 {[%clk 01:41:15]}
{[%emt 00:00:08]} 3. e5 {[%clk 01:41:47]} {[%emt 00:00:07]} Bf5 {[%clk
01:41:30]} {[%emt 00:00:13]} 4. Nd2 {[%clk 01:42:11]} {[%emt 00:00:07]} e6
{[%clk 01:41:30]} {[%emt 00:00:29]} 5. Nb3 {[%clk 01:42:37]} {[%emt 00:00:04]}
a6 {[%clk 01:41:56]} {[%emt 00:00:05]} 6. Be3 {[%clk 01:40:39]} {[%emt
00:02:28]} Nd7 {[%clk 01:41:38]} {[%emt 00:00:44]} 7. Nf3 {[%clk 01:41:01]}
{[%emt 00:00:12]} Rc8 {[%clk 01:41:38]} {[%emt 00:00:29]} 8. Be2 {[%clk
01:40:17]} {[%emt 00:01:15]} c5 {[%clk 01:41:14]} {[%emt 00:00:52]} 9. c3
{[%clk 01:40:18]} {[%emt 00:00:30]} cxd4 {[%clk 01:39:02]} {[%emt 00:02:43]} 10.
Nfxd4 {[%clk 01:34:50]} {[%emt 00:05:58]} Bg6 {[%clk 01:35:12]} {[%emt
00:04:19]} 11. f4 {[%clk 01:29:49]} {[%emt 00:05:31]} Ne7 {[%clk 01:18:42]}
{[%emt 00:16:59]} 12. Bg4 {[%clk 01:09:42]} {[%emt 00:20:38]} Nc6 {[%clk
01:03:01]} {[%emt 00:16:09]} 13. O-O {[%clk 00:59:29]} {[%emt 00:10:46]} Nxd4
{[%clk 00:57:37]} {[%emt 00:05:53]} 14. Nxd4 {[%clk 00:59:40]} {[%emt
00:00:20]} Bc5 {[%clk 00:50:10]} {[%emt 00:07:57]} 15. Kh1 {[%clk 00:59:43]}
{[%emt 00:00:27]} O-O {[%clk 00:47:01]} {[%emt 00:03:38]} 16. Bxe6 {[%clk
00:33:56]} {[%emt 00:26:17]} Bxd4 {[%clk 00:37:00]} {[%emt 00:10:31]} 17. Bxd7
{[%clk 00:34:22]} {[%emt 00:00:04]} Bxe3 {[%clk 00:34:24]} {[%emt 00:03:05]} 18.
Bxc8 {[%clk 00:34:23]} {[%emt 00:00:31]} Qxc8 {[%clk 00:34:42]} {[%emt
00:00:12]} 19. Qf3 {[%clk 00:30:01]} {[%emt 00:04:52]} Bd3 {[%clk 00:33:24]}
{[%emt 00:01:48]} 20. Rfd1 {[%clk 00:27:59]} {[%emt 00:02:31]} Bc2 {[%clk
00:33:46]} {[%emt 00:00:08]} 21. Qxe3 {[%clk 00:28:00]} {[%emt 00:00:29]} Bxd1
{[%clk 00:34:10]} {[%emt 00:00:06]} 22. Rxd1 {[%clk 00:28:28]} {[%emt
00:00:02]} Qc4 {[%clk 00:33:51]} {[%emt 00:00:49]} 23. a3 {[%clk 00:25:47]}
{[%emt 00:03:12]} h6 {[%clk 00:33:18]} {[%emt 00:01:03]} 24. h3 {[%clk
00:25:53]} {[%emt 00:00:24]} Re8 {[%clk 00:32:53]} {[%emt 00:00:55]} 25. Rd4
{[%clk 00:23:07]} {[%emt 00:03:16]} Qf1+ {[%clk 00:29:25]} {[%emt 00:03:57]} 26.
Kh2 {[%clk 00:22:03]} {[%emt 00:01:34]} Rd8 {[%clk 00:28:40]} {[%emt 00:01:15]}
27. c4 {[%clk 00:18:59]} {[%emt 00:03:35]} Rc8 {[%clk 00:28:56]} {[%emt
00:00:13]} 28. e6 {[%clk 00:17:48]} {[%emt 00:01:42]} 1-0

[Event "Masters Tournament (MTO)"]
[Site "Biel, Switzerland"]
[Date "2026.07.15"]
[Round "3.10"]
[White "Gloeckler, Christian"]
[Black "Ivana Maria, Furtado"]
[Result "1-0"]
[TimeControl "100+30+30sec/move"]
[WhiteTitle "-"]
[BlackTitle "-"]
[WhiteFideId "34608966"]
[BlackFideId "5048400"]
[WhiteElo "2506"]
[BlackElo "2182"]

1. e4 {[%clk 01:40:58]} {[%emt 00:00:01]} e5 {[%clk 01:39:12]} {[%emt
00:01:49]} 2. Nf3 {[%clk 01:41:19]} {[%emt 00:00:09]} Nf6 {[%clk 01:39:17]}
{[%emt 00:00:24]} 3. d4 {[%clk 01:41:44]} {[%emt 00:00:06]} Nxe4 {[%clk
01:38:56]} {[%emt 00:00:51]} 4. Bd3 {[%clk 01:42:07]} {[%emt 00:00:07]} d5
{[%clk 01:38:29]} {[%emt 00:00:57]} 5. Nxe5 {[%clk 01:42:30]} {[%emt 00:00:07]}
Bd6 {[%clk 01:38:12]} {[%emt 00:00:46]} 6. O-O {[%clk 01:42:08]} {[%emt
00:00:52]} O-O {[%clk 01:37:57]} {[%emt 00:00:45]} 7. c4 {[%clk 01:42:28]}
{[%emt 00:00:10]} Bxe5 {[%clk 01:33:41]} {[%emt 00:04:46]} 8. dxe5 {[%clk
01:42:50]} {[%emt 00:00:08]} Nc6 {[%clk 01:33:56]} {[%emt 00:00:15]} 9. cxd5
{[%clk 01:42:34]} {[%emt 00:00:46]} Qxd5 {[%clk 01:34:16]} {[%emt 00:00:10]} 10.
Qc2 {[%clk 01:42:58]} {[%emt 00:00:06]} Nb4 {[%clk 01:34:36]} {[%emt 00:00:11]}
11. Bxe4 {[%clk 01:43:20]} {[%emt 00:00:08]} Nxc2 {[%clk 01:34:59]} {[%emt
00:00:06]} 12. Bxd5 {[%clk 01:43:43]} {[%emt 00:00:07]} Bf5 {[%clk 01:35:19]}
{[%emt 00:00:10]} 13. g4 {[%clk 01:41:55]} {[%emt 00:02:18]} Bxg4 {[%clk
01:35:13]} {[%emt 00:00:36]} 14. Be4 {[%clk 01:42:19]} {[%emt 00:00:06]} Nxa1
{[%clk 01:34:40]} {[%emt 00:01:04]} 15. Bf4 {[%clk 01:37:55]} {[%emt 00:04:53]}
f5 {[%clk 01:30:18]} {[%emt 00:04:52]} 16. Bd5+ {[%clk 01:30:19]} {[%emt
00:08:06]} Kh8 {[%clk 01:30:19]} {[%emt 00:00:29]} 17. Rc1 {[%clk 01:30:40]}
{[%emt 00:00:09]} Rad8 {[%clk 01:01:50]} {[%emt 00:29:00]} 18. Nc3 {[%clk
01:30:38]} {[%emt 00:00:31]} c6 {[%clk 00:49:01]} {[%emt 00:13:19]} 19. Bg2
{[%clk 01:29:32]} {[%emt 00:01:36]} h6 {[%clk 00:45:42]} {[%emt 00:03:49]} 20.
Rxa1 {[%clk 01:14:57]} {[%emt 00:15:05]} g5 {[%clk 00:45:40]} {[%emt 00:00:32]}
21. Be3 {[%clk 01:15:12]} {[%emt 00:00:15]} f4 {[%clk 00:41:55]} {[%emt
00:04:15]} 22. Bc5 {[%clk 01:15:23]} {[%emt 00:00:20]} Rf7 {[%clk 00:37:30]}
{[%emt 00:04:54]} 23. Ne4 {[%clk 01:10:31]} {[%emt 00:05:22]} f3 {[%clk
00:34:40]} {[%emt 00:03:20]} 24. Bf1 {[%clk 01:06:45]} {[%emt 00:04:16]} b5
{[%clk 00:33:26]} {[%emt 00:01:44]} 25. Bd6 {[%clk 01:05:24]} {[%emt 00:01:51]}
Be6 {[%clk 00:32:32]} {[%emt 00:01:24]} 26. Nc5 {[%clk 01:03:52]} {[%emt
00:02:02]} Bd5 {[%clk 00:31:58]} {[%emt 00:01:05]} 27. a4 {[%clk 01:01:28]}
{[%emt 00:02:53]} b4 {[%clk 00:31:26]} {[%emt 00:01:02]} 28. Rd1 {[%clk
01:00:05]} {[%emt 00:01:52]} Rf4 {[%clk 00:27:35]} {[%emt 00:04:21]} 29. h3
{[%clk 01:00:10]} {[%emt 00:00:26]} Kg8 {[%clk 00:25:15]} {[%emt 00:02:51]} 30.
Rd2 {[%clk 00:50:45]} {[%emt 00:09:54]} g4 {[%clk 00:22:47]} {[%emt 00:02:58]}
31. Rxd5 {[%clk 00:49:41]} {[%emt 00:01:34]} cxd5 {[%clk 00:20:14]} {[%emt
00:03:03]} 32. Ne6 {[%clk 00:50:00]} {[%emt 00:00:11]} Rff8 {[%clk 00:16:02]}
{[%emt 00:04:43]} 33. Nxf8 {[%clk 00:50:15]} {[%emt 00:00:14]} Rxf8 {[%clk
00:16:30]} {[%emt 00:00:02]} 34. Bxf8 {[%clk 00:50:14]} {[%emt 00:00:31]} Kxf8
{[%clk 00:16:58]} {[%emt 00:00:03]} 35. hxg4 {[%clk 00:50:12]} {[%emt
00:00:31]} Ke7 {[%clk 00:17:24]} {[%emt 00:00:04]} 36. Bh3 {[%clk 00:50:31]}
{[%emt 00:00:11]} 1-0